[Event "*** Titled Tuesday Blitz"]
[Site "Chess.com"]
[Date "2019.09.03"]
[Round "4"]
[White "SirMittensofMittensville"]
[Black "Ali_rastbod"]
[Result "1/2-1/2"]
[WhiteElo "2536"]
[BlackElo "2704"]
[TimeControl "180+2"]
[EndTime "15:50:37 PDT"]
[Termination "Game drawn by repetition"]

1. e4 {[%clk 0:03:01.9]} 1... e6 {[%clk 0:02:59.3]} 2. d3 {[%clk 0:03:01.9]}
2... d5 {[%clk 0:02:59.9]} 3. Qe2 {[%clk 0:03:03.5]} 3... dxe4 {[%clk
0:02:38.8]} 4. dxe4 {[%clk 0:03:03.8]} 4... e5 {[%clk 0:02:40.2]} 5. Nf3 {[%clk
0:03:05.4]} 5... Nc6 {[%clk 0:02:40.2]} 6. c3 {[%clk 0:03:06.8]} 6... Nf6 {[%clk
0:02:37.4]} 7. Qc2 {[%clk 0:03:08.1]} 7... a5 {[%clk 0:02:33.8]} 8. Bb5 {[%clk
0:03:07.1]} 8... Bd6 {[%clk 0:02:34.9]} 9. O-O {[%clk 0:03:07.6]} 9... O-O
{[%clk 0:02:35.5]} 10. Rd1 {[%clk 0:03:02.4]} 10... Qe7 {[%clk 0:02:35.5]} 11.
Bg5 {[%clk 0:02:59.2]} 11... h6 {[%clk 0:02:36]} 12. Bxf6 {[%clk 0:02:59.7]}
12... Qxf6 {[%clk 0:02:37.9]} 13. Nbd2 {[%clk 0:03:01.3]} 13... Bg4 {[%clk
0:02:33.9]} 14. Bxc6 {[%clk 0:02:58.1]} 14... bxc6 {[%clk 0:02:34.7]} 15. h3
{[%clk 0:02:57.6]} 15... Bh5 {[%clk 0:02:35.7]} 16. a4 {[%clk 0:02:50.9]} 16...
Bc5 {[%clk 0:02:36.2]} 17. Qd3 {[%clk 0:02:39.6]} 17... Rfd8 {[%clk 0:02:29]}
18. Qe2 {[%clk 0:02:40.6]} 18... Bb6 {[%clk 0:02:02.4]} 19. Nc4 {[%clk
0:02:37.5]} 19... Bxf3 {[%clk 0:01:29.5]} 20. Qxf3 {[%clk 0:02:37.5]} 20... Qxf3
{[%clk 0:01:29.9]} 21. gxf3 {[%clk 0:02:38.9]} 21... f6 {[%clk 0:01:31.8]} 22.
Kf1 {[%clk 0:02:37.6]} 22... Kf7 {[%clk 0:01:32.6]} 23. Ke2 {[%clk 0:02:37.8]}
23... Ke6 {[%clk 0:01:32]} 24. Rxd8 {[%clk 0:02:33]} 24... Rxd8 {[%clk
0:01:32.4]} 25. Rd1 {[%clk 0:02:34.9]} 25... Ra8 {[%clk 0:01:22.8]} 26. Ra1
{[%clk 0:02:25]} 26... Bc5 {[%clk 0:01:23.1]} 27. Ra2 {[%clk 0:02:16]} 27... Be7
{[%clk 0:01:20.3]} 28. b3 {[%clk 0:02:06.5]} 28... g6 {[%clk 0:01:18.4]} 29. Rd2
{[%clk 0:02:03.7]} 29... f5 {[%clk 0:01:19.3]} 30. Rd1 {[%clk 0:02:02.7]} 30...
Bg5 {[%clk 0:01:08.6]} 31. Rg1 {[%clk 0:02:01.1]} 31... Kf6 {[%clk 0:01:07.1]}
32. Kd3 {[%clk 0:01:52.8]} 32... Bf4 {[%clk 0:01:01]} 33. Ke2 {[%clk 0:01:44.3]}
33... Bg5 {[%clk 0:01:00.1]} 34. Ra1 {[%clk 0:01:44.4]} 34... Ke6 {[%clk
0:00:56.7]} 35. Rg1 {[%clk 0:01:30.4]} 35... Kf6 {[%clk 0:00:56.7]} 1/2-1/2

[Event "*** Titled Tuesday Blitz"]
[Site "Chess.com"]
[Date "2019.09.03"]
[Round "4"]
[White "Morscas"]
[Black "popov_m"]
[Result "0-1"]
[WhiteElo "2253"]
[BlackElo "2620"]
[TimeControl "180+2"]
[EndTime "15:50:57 PDT"]
[Termination "popov_m won by resignation"]

1. e4 {[%clk 0:03:01.9]} 1... c5 {[%clk 0:03:00.4]} 2. Nf3 {[%clk 0:03:02.1]}
2... d6 {[%clk 0:02:59.4]} 3. d4 {[%clk 0:03:02.8]} 3... cxd4 {[%clk 0:03:00.8]}
4. Nxd4 {[%clk 0:03:04.3]} 4... Nf6 {[%clk 0:03:02.5]} 5. Nc3 {[%clk 0:03:05.8]}
5... a6 {[%clk 0:03:04.1]} 6. g3 {[%clk 0:03:07.3]} 6... e5 {[%clk 0:03:01.6]}
7. Nf3 {[%clk 0:03:07.6]} 7... Be7 {[%clk 0:02:59.4]} 8. Nh4 {[%clk 0:03:06.2]}
8... O-O {[%clk 0:02:57.8]} 9. Nf5 {[%clk 0:03:06.9]} 9... Bxf5 {[%clk
0:02:58.7]} 10. exf5 {[%clk 0:03:08.8]} 10... d5 {[%clk 0:02:56.7]} 11. Bg2
{[%clk 0:03:10.3]} 11... d4 {[%clk 0:02:47.5]} 12. Ne4 {[%clk 0:03:11.2]} 12...
Nxe4 {[%clk 0:02:40.6]} 13. Bxe4 {[%clk 0:03:13.1]} 13... Qb6 {[%clk 0:02:40.2]}
14. O-O {[%clk 0:03:09.4]} 14... Nd7 {[%clk 0:02:41.5]} 15. Bg2 {[%clk
0:03:01.3]} 15... Rac8 {[%clk 0:02:32]} 16. Bd2 {[%clk 0:02:59.3]} 16... Qxb2
{[%clk 0:02:22.2]} 17. Rb1 {[%clk 0:02:58.4]} 17... Qxc2 {[%clk 0:02:23.7]} 18.
Rxb7 {[%clk 0:02:59]} 18... Qxf5 {[%clk 0:01:34]} 19. Qf3 {[%clk 0:02:37.3]}
19... Qe6 {[%clk 0:01:26.9]} 20. Qb3 {[%clk 0:02:19.8]} 20... Qd6 {[%clk
0:01:07.5]} 21. Bb4 {[%clk 0:01:59.5]} 21... Nc5 {[%clk 0:01:08.7]} 22. Qa3
{[%clk 0:01:55.1]} 22... a5 {[%clk 0:00:56.3]} 23. Bxc5 {[%clk 0:01:44]} 23...
Qxc5 {[%clk 0:00:56.5]} 24. Qd3 {[%clk 0:01:39.3]} 24... Bf6 {[%clk 0:00:51.9]}
25. Qf5 {[%clk 0:01:39]} 25... Qd6 {[%clk 0:00:41.1]} 26. Rd7 {[%clk 0:01:39.6]}
26... Qe6 {[%clk 0:00:40.4]} 27. Qxe6 {[%clk 0:01:36]} 27... fxe6 {[%clk
0:00:42.3]} 28. Bh3 {[%clk 0:01:33.5]} 28... Rfe8 {[%clk 0:00:40.6]} 29. Rb1
{[%clk 0:01:33.6]} 29... Rc2 {[%clk 0:00:38]} 30. a4 {[%clk 0:01:30.6]} 30... e4
{[%clk 0:00:35.2]} 31. Kf1 {[%clk 0:01:27.2]} 31... e3 {[%clk 0:00:36.2]} 32.
fxe3 {[%clk 0:01:27.7]} 32... dxe3 {[%clk 0:00:38.1]} 33. Bg4 {[%clk 0:01:24.6]}
33... Rxh2 {[%clk 0:00:36.8]} 34. Rb3 {[%clk 0:01:19.1]} 34... h5 {[%clk
0:00:36.5]} 35. Bf3 {[%clk 0:01:15.5]} 35... Rf2+ {[%clk 0:00:37.4]} 0-1

[Event "*** Titled Tuesday Blitz"]
[Site "Chess.com"]
[Date "2019.09.03"]
[Round "4"]
[White "Gattass"]
[Black "Niclox"]
[Result "1-0"]
[WhiteElo "2338"]
[BlackElo "2613"]
[TimeControl "180+2"]
[EndTime "15:51:08 PDT"]
[Termination "Gattass won on time"]

1. d4 {[%clk 0:03:01.7]} 1... Nf6 {[%clk 0:02:59.6]} 2. c4 {[%clk 0:02:59.1]}
2... e5 {[%clk 0:03:00.8]} 3. dxe5 {[%clk 0:02:57.9]} 3... Ng4 {[%clk
0:03:01.9]} 4. Nh3 {[%clk 0:02:53.4]} 4... Nxe5 {[%clk 0:02:59.7]} 5. e3 {[%clk
0:02:44.4]} 5... Nbc6 {[%clk 0:02:59.9]} 6. Nc3 {[%clk 0:02:44]} 6... Bb4 {[%clk
0:02:57.8]} 7. Bd2 {[%clk 0:02:44.4]} 7... d6 {[%clk 0:02:58.4]} 8. Nf4 {[%clk
0:02:42.5]} 8... O-O {[%clk 0:02:59.6]} 9. Be2 {[%clk 0:02:37.2]} 9... Bf5
{[%clk 0:02:59.9]} 10. O-O {[%clk 0:02:32.7]} 10... Re8 {[%clk 0:02:57.4]} 11.
a3 {[%clk 0:02:19.4]} 11... Bxc3 {[%clk 0:02:58]} 12. Bxc3 {[%clk 0:02:20.4]}
12... a5 {[%clk 0:02:51]} 13. b4 {[%clk 0:02:15.4]} 13... Qg5 {[%clk 0:02:47.5]}
14. b5 {[%clk 0:02:11.2]} 14... Ne7 {[%clk 0:02:46.7]} 15. b6 {[%clk 0:01:53.4]}
15... cxb6 {[%clk 0:02:48.6]} 16. Qxd6 {[%clk 0:01:53.4]} 16... N7g6 {[%clk
0:02:46.3]} 17. Nxg6 {[%clk 0:01:47.9]} 17... Nxg6 {[%clk 0:02:48.2]} 18. Qg3
{[%clk 0:01:42.1]} 18... Qxg3 {[%clk 0:02:45.1]} 19. hxg3 {[%clk 0:01:42.4]}
19... Rac8 {[%clk 0:02:47]} 20. Bd4 {[%clk 0:01:42.2]} 20... Ne5 {[%clk
0:02:45.6]} 21. Bxb6 {[%clk 0:01:39.4]} 21... Nxc4 {[%clk 0:02:45.1]} 22. Bxc4
{[%clk 0:01:26.9]} 22... Rxc4 {[%clk 0:02:47]} 23. Bxa5 {[%clk 0:01:28.6]} 23...
Rec8 {[%clk 0:02:43.9]} 24. f3 {[%clk 0:01:23.8]} 24... h5 {[%clk 0:02:42.5]}
25. e4 {[%clk 0:01:24]} 25... Be6 {[%clk 0:02:42.4]} 26. Rfd1 {[%clk 0:01:21.7]}
26... Rc2 {[%clk 0:01:28.9]} 27. Rd2 {[%clk 0:01:21.6]} 1-0

[Event "*** Titled Tuesday Blitz"]
[Site "Chess.com"]
[Date "2019.09.03"]
[Round "4"]
[White "Last7Samurai"]
[Black "jefferyx"]
[Result "0-1"]
[WhiteElo "2777"]
[BlackElo "2952"]
[TimeControl "180+2"]
[EndTime "15:51:13 PDT"]
[Termination "jefferyx won by checkmate"]

1. e4 {[%clk 0:03:01.9]} 1... c6 {[%clk 0:03:01.3]} 2. d4 {[%clk 0:03:01.9]}
2... d5 {[%clk 0:03:02.4]} 3. f3 {[%clk 0:03:03.1]} 3... Qb6 {[%clk 0:03:03.2]}
4. Nc3 {[%clk 0:03:03.2]} 4... dxe4 {[%clk 0:02:59.4]} 5. Nxe4 {[%clk 0:03:03]}
5... Nf6 {[%clk 0:02:56.7]} 6. c3 {[%clk 0:03:01.9]} 6... Nbd7 {[%clk
0:02:48.9]} 7. Bd3 {[%clk 0:02:59.7]} 7... g6 {[%clk 0:02:45.5]} 8. Ne2 {[%clk
0:03:00]} 8... Bg7 {[%clk 0:02:46.6]} 9. O-O {[%clk 0:03:01]} 9... O-O {[%clk
0:02:47.8]} 10. Kh1 {[%clk 0:03:02.4]} 10... e5 {[%clk 0:02:48.1]} 11. Qb3
{[%clk 0:02:43.7]} 11... exd4 {[%clk 0:02:47.1]} 12. Nxd4 {[%clk 0:02:44.2]}
12... Nxe4 {[%clk 0:02:47.5]} 13. Bxe4 {[%clk 0:02:42.3]} 13... Nc5 {[%clk
0:02:45.5]} 14. Qxb6 {[%clk 0:02:42]} 14... axb6 {[%clk 0:02:47.4]} 15. Bc2
{[%clk 0:02:42.5]} 15... Re8 {[%clk 0:02:48.4]} 16. Bf4 {[%clk 0:02:41]} 16...
Be6 {[%clk 0:02:30.9]} 17. Nxe6 {[%clk 0:02:30.7]} 17... Rxe6 {[%clk 0:02:32.8]}
18. a4 {[%clk 0:01:36.4]} 18... Re2 {[%clk 0:02:32.9]} 19. Rfc1 {[%clk
0:01:35.3]} 19... b5 {[%clk 0:01:46.7]} 20. a5 {[%clk 0:01:14.5]} 20... Rd8
{[%clk 0:01:41.6]} 21. Kg1 {[%clk 0:01:12.5]} 21... Ne6 {[%clk 0:01:39.5]} 22.
Bg3 {[%clk 0:01:01.9]} 22... Rdd2 {[%clk 0:01:40.2]} 23. Bd1 {[%clk 0:00:55.2]}
23... Rxg2+ {[%clk 0:01:39.2]} 24. Kf1 {[%clk 0:00:56.8]} 24... Nc5 {[%clk
0:01:25.9]} 25. f4 {[%clk 0:00:49]} 25... Ne4 {[%clk 0:01:02.4]} 26. Be1 {[%clk
0:00:40.1]} 26... Rxb2 {[%clk 0:01:03.7]} 27. Bf3 {[%clk 0:00:40.5]} 27... Rbf2+
{[%clk 0:01:04.9]} 28. Bxf2 {[%clk 0:00:40.6]} 28... Rxf2+ {[%clk 0:01:06.8]}
29. Kg1 {[%clk 0:00:40.9]} 29... Rxf3 {[%clk 0:01:08.7]} 30. a6 {[%clk
0:00:41.6]} 30... bxa6 {[%clk 0:01:10.2]} 31. Rxa6 {[%clk 0:00:43]} 31... Bxc3
{[%clk 0:01:09.5]} 32. Rxc6 {[%clk 0:00:43.3]} 32... Bd4+ {[%clk 0:01:07.8]} 33.
Kg2 {[%clk 0:00:43.7]} 33... Rf2+ {[%clk 0:01:09.3]} 34. Kh1 {[%clk 0:00:44.9]}
34... Rxf4 {[%clk 0:01:11.2]} 35. Rc8+ {[%clk 0:00:39.1]} 35... Kg7 {[%clk
0:01:12.2]} 36. Rb8 {[%clk 0:00:41]} 36... b4 {[%clk 0:01:06.7]} 37. Rxb4 {[%clk
0:00:40.7]} 37... Nf2+ {[%clk 0:01:07.8]} 38. Kg2 {[%clk 0:00:41]} 38... Nd3
{[%clk 0:01:09.7]} 39. Rxd4 {[%clk 0:00:32.4]} 39... Rxd4 {[%clk 0:01:10.4]} 40.
Rd1 {[%clk 0:00:33.8]} 40... Nf4+ {[%clk 0:01:11.5]} 41. Kh1 {[%clk 0:00:35.4]}
41... Rxd1# {[%clk 0:01:12.2]} 0-1

[Event "*** Titled Tuesday Blitz"]
[Site "Chess.com"]
[Date "2019.09.03"]
[Round "4"]
[White "Ginzburg_Yakov"]
[Black "HarryCun"]
[Result "0-1"]
[WhiteElo "2519"]
[BlackElo "2119"]
[TimeControl "180+2"]
[EndTime "15:51:13 PDT"]
[Termination "HarryCun won by resignation"]

1. e3 {[%clk 0:03:01.7]} 1... Nf6 {[%clk 0:02:54.1]} 2. d4 {[%clk 0:03:02.3]}
2... e6 {[%clk 0:02:54.8]} 3. Nf3 {[%clk 0:03:02.8]} 3... b6 {[%clk 0:02:54.1]}
4. c4 {[%clk 0:03:00.8]} 4... Bb7 {[%clk 0:02:53.6]} 5. a3 {[%clk 0:03:01.7]}
5... Be7 {[%clk 0:02:52.6]} 6. Nc3 {[%clk 0:03:02.4]} 6... O-O {[%clk
0:02:52.3]} 7. Bd3 {[%clk 0:03:02.3]} 7... d6 {[%clk 0:02:43.4]} 8. O-O {[%clk
0:03:02.5]} 8... Nbd7 {[%clk 0:02:44.7]} 9. e4 {[%clk 0:03:01.6]} 9... c5 {[%clk
0:02:45]} 10. d5 {[%clk 0:03:00.3]} 10... e5 {[%clk 0:02:44.2]} 11. b4 {[%clk
0:02:58]} 11... g6 {[%clk 0:02:16.3]} 12. Ne2 {[%clk 0:02:39.8]} 12... Nh5
{[%clk 0:02:06.5]} 13. g4 {[%clk 0:02:34.1]} 13... Ng7 {[%clk 0:02:01]} 14. Bh6
{[%clk 0:02:26.5]} 14... Bf6 {[%clk 0:01:56.3]} 15. Qd2 {[%clk 0:02:17.6]} 15...
Re8 {[%clk 0:01:41.4]} 16. Ng3 {[%clk 0:02:05.5]} 16... a5 {[%clk 0:01:30.5]}
17. Kh1 {[%clk 0:01:55]} 17... axb4 {[%clk 0:01:29.6]} 18. axb4 {[%clk
0:01:55.4]} 18... Qc7 {[%clk 0:01:22.6]} 19. b5 {[%clk 0:01:52.2]} 19... Ra5
{[%clk 0:01:19.9]} 20. Rxa5 {[%clk 0:01:41.1]} 20... bxa5 {[%clk 0:01:19.9]} 21.
h4 {[%clk 0:01:23.2]} 21... Ra8 {[%clk 0:01:14.5]} 22. Rg1 {[%clk 0:00:47]}
22... a4 {[%clk 0:01:11.4]} 23. Bb1 {[%clk 0:00:47.8]} 23... Qa5 {[%clk
0:01:06]} 24. Qe2 {[%clk 0:00:39.5]} 24... a3 {[%clk 0:01:04.2]} 25. Ba2 {[%clk
0:00:40]} 25... Qc3 {[%clk 0:01:04.1]} 26. Rc1 {[%clk 0:00:36.1]} 26... Qb2
{[%clk 0:01:01.2]} 27. Rc2 {[%clk 0:00:37.7]} 27... Qb4 {[%clk 0:00:55.8]} 28.
Bd2 {[%clk 0:00:36.4]} 28... Qa4 {[%clk 0:00:56.3]} 29. h5 {[%clk 0:00:34.3]}
29... Qxc2 {[%clk 0:00:53.4]} 0-1

[Event "*** Titled Tuesday Blitz"]
[Site "Chess.com"]
[Date "2019.09.03"]
[Round "4"]
[White "IMTominho"]
[Black "Andrei_Belozerov"]
[Result "0-1"]
[WhiteElo "2689"]
[BlackElo "2533"]
[TimeControl "180+2"]
[EndTime "15:51:38 PDT"]
[Termination "Andrei_Belozerov won by resignation"]

1. d4 {[%clk 0:02:58.1]} 1... d5 {[%clk 0:03:00.7]} 2. c4 {[%clk 0:02:59]} 2...
c6 {[%clk 0:03:01.9]} 3. Nf3 {[%clk 0:02:56.3]} 3... Nf6 {[%clk 0:03:03.3]} 4.
Nc3 {[%clk 0:02:56.9]} 4... dxc4 {[%clk 0:03:03.4]} 5. a4 {[%clk 0:02:57.3]}
5... Bf5 {[%clk 0:03:04.9]} 6. e3 {[%clk 0:02:57]} 6... e6 {[%clk 0:03:05.9]} 7.
Bxc4 {[%clk 0:02:58]} 7... Bb4 {[%clk 0:03:07]} 8. O-O {[%clk 0:02:59.2]} 8...
Nbd7 {[%clk 0:03:08.3]} 9. h3 {[%clk 0:03:00.5]} 9... O-O {[%clk 0:03:07.5]} 10.
Qe2 {[%clk 0:03:01.5]} 10... Bg6 {[%clk 0:03:04.6]} 11. Rd1 {[%clk 0:03:02.2]}
11... Qe7 {[%clk 0:03:02.2]} 12. Bd2 {[%clk 0:03:02.6]} 12... Rfe8 {[%clk
0:03:01.4]} 13. a5 {[%clk 0:02:57.9]} 13... Rad8 {[%clk 0:03:01.5]} 14. a6
{[%clk 0:02:53.1]} 14... b5 {[%clk 0:03:01.1]} 15. Bb3 {[%clk 0:02:54]} 15... e5
{[%clk 0:02:51.3]} 16. dxe5 {[%clk 0:02:50.2]} 16... Nxe5 {[%clk 0:02:51.8]} 17.
Nxe5 {[%clk 0:02:25.5]} 17... Qxe5 {[%clk 0:02:52.6]} 18. Be1 {[%clk 0:02:25.5]}
18... Bd6 {[%clk 0:02:53.3]} 19. f4 {[%clk 0:02:17.6]} 19... Qe7 {[%clk
0:02:46.8]} 20. Bf2 {[%clk 0:02:08.8]} 20... b4 {[%clk 0:02:32.6]} 21. Na4
{[%clk 0:01:48.4]} 21... Bxf4 {[%clk 0:02:31]} 22. Qf3 {[%clk 0:01:31.6]} 22...
Bb8 {[%clk 0:02:24.2]} 23. Rxd8 {[%clk 0:01:29.3]} 23... Rxd8 {[%clk 0:02:23.2]}
24. Rd1 {[%clk 0:01:31.2]} 24... Rxd1+ {[%clk 0:02:16.2]} 25. Qxd1 {[%clk
0:01:31.5]} 25... Ne4 {[%clk 0:02:16.6]} 26. Be1 {[%clk 0:01:29]} 26... h5
{[%clk 0:02:13]} 27. Qd4 {[%clk 0:01:26.7]} 27... c5 {[%clk 0:02:07.6]} 28. Qd5
{[%clk 0:01:26.8]} 28... Qe5 {[%clk 0:02:02.4]} 29. Qxe5 {[%clk 0:00:59.8]}
29... Bxe5 {[%clk 0:02:03.2]} 30. Bd5 {[%clk 0:01:01.1]} 30... Bd6 {[%clk
0:01:45.4]} 31. Kf1 {[%clk 0:00:55.4]} 31... Kf8 {[%clk 0:01:42.5]} 32. Nb6
{[%clk 0:00:47.5]} 32... Nf6 {[%clk 0:01:38.4]} 33. Bb7 {[%clk 0:00:38.6]} 33...
Bd3+ {[%clk 0:01:29.6]} 34. Kf2 {[%clk 0:00:39.4]} 34... Bxa6 {[%clk 0:01:26.9]}
35. Bxa6 {[%clk 0:00:37.8]} 35... axb6 {[%clk 0:01:27.9]} 36. Bb7 {[%clk
0:00:37.6]} 36... Be5 {[%clk 0:01:27.3]} 37. b3 {[%clk 0:00:38.4]} 37... Bc3
{[%clk 0:01:27.5]} 38. Bxc3 {[%clk 0:00:31.1]} 38... bxc3 {[%clk 0:01:28.3]} 39.
Ba6 {[%clk 0:00:31.5]} 39... Nd5 {[%clk 0:01:24.9]} 40. Ke2 {[%clk 0:00:28.4]}
40... h4 {[%clk 0:01:22.8]} 0-1

[Event "*** Titled Tuesday Blitz"]
[Site "Chess.com"]
[Date "2019.09.03"]
[Round "4"]
[White "karinachess1"]
[Black "NormWeinstein"]
[Result "1-0"]
[WhiteElo "2563"]
[BlackElo "2373"]
[TimeControl "180+2"]
[EndTime "15:51:40 PDT"]
[Termination "karinachess1 won by resignation"]

1. e4 {[%clk 0:03:00]} 1... c5 {[%clk 0:03:00.8]} 2. Nf3 {[%clk 0:03:00.8]} 2...
d6 {[%clk 0:03:02.3]} 3. d4 {[%clk 0:03:01.9]} 3... Nf6 {[%clk 0:03:03.8]} 4.
Nc3 {[%clk 0:03:02.6]} 4... cxd4 {[%clk 0:03:04.9]} 5. Nxd4 {[%clk 0:03:04.5]}
5... Nc6 {[%clk 0:03:05.6]} 6. g3 {[%clk 0:02:59.8]} 6... Nxd4 {[%clk
0:03:04.8]} 7. Qxd4 {[%clk 0:03:00.6]} 7... g6 {[%clk 0:03:06.1]} 8. Bg2 {[%clk
0:02:43.9]} 8... Bg7 {[%clk 0:03:05.9]} 9. e5 {[%clk 0:02:44]} 9... dxe5 {[%clk
0:03:05.5]} 10. Qxd8+ {[%clk 0:02:38.4]} 10... Kxd8 {[%clk 0:03:06]} 11. Be3
{[%clk 0:02:39]} 11... Bd7 {[%clk 0:02:53.2]} 12. Bxb7 {[%clk 0:02:25.4]} 12...
Rb8 {[%clk 0:02:52.4]} 13. Ba6 {[%clk 0:02:18.9]} 13... Rxb2 {[%clk 0:02:51.5]}
14. O-O-O {[%clk 0:02:20.3]} 14... Rb8 {[%clk 0:02:06.4]} 15. Bxa7 {[%clk
0:02:21.1]} 15... Ra8 {[%clk 0:02:05.2]} 16. Bb6+ {[%clk 0:02:22.7]} 16... Ke8
{[%clk 0:02:04.8]} 17. Nb5 {[%clk 0:02:12.4]} 17... Kf8 {[%clk 0:01:32.6]} 18.
Nc7 {[%clk 0:02:08.4]} 18... Rb8 {[%clk 0:01:28.5]} 19. Be3 {[%clk 0:02:00.5]}
19... Bc6 {[%clk 0:01:14.4]} 20. Rhe1 {[%clk 0:01:42.1]} 20... Ng4 {[%clk
0:01:14.3]} 21. Ba7 {[%clk 0:01:39.5]} 21... Re8 {[%clk 0:00:53.1]} 22. Nxe8
{[%clk 0:01:38.3]} 22... Kxe8 {[%clk 0:00:53.5]} 23. Bb6 {[%clk 0:01:34.8]}
23... f5 {[%clk 0:00:38.7]} 24. Bc4 {[%clk 0:01:21.4]} 24... Bh6+ {[%clk
0:00:14.2]} 25. Kb2 {[%clk 0:01:18.5]} 25... Kf8 {[%clk 0:00:15]} 26. h3 {[%clk
0:01:14.7]} 26... Nf6 {[%clk 0:00:13.7]} 27. Rxe5 {[%clk 0:01:15.6]} 27... Nd7
{[%clk 0:00:09.6]} 28. Re6 {[%clk 0:00:44]} 28... Nxb6 {[%clk 0:00:09.8]} 29.
Rxc6 {[%clk 0:00:36.8]} 29... Bg7+ {[%clk 0:00:09.4]} 30. Kb3 {[%clk 0:00:34.1]}
1-0

[Event "*** Titled Tuesday Blitz"]
[Site "Chess.com"]
[Date "2019.09.03"]
[Round "4"]
[White "tonyq11"]
[Black "guillembaches"]
[Result "0-1"]
[WhiteElo "2188"]
[BlackElo "2305"]
[TimeControl "180+2"]
[EndTime "15:51:44 PDT"]
[Termination "guillembaches won by checkmate"]

1. d4 {[%clk 0:03:01.9]} 1... Nf6 {[%clk 0:03:00.3]} 2. c4 {[%clk 0:03:02.9]}
2... e6 {[%clk 0:03:01.5]} 3. Nc3 {[%clk 0:03:04.1]} 3... Bb4 {[%clk 0:03:02.6]}
4. f3 {[%clk 0:03:05.4]} 4... d5 {[%clk 0:03:02.1]} 5. a3 {[%clk 0:03:06.1]}
5... Bxc3+ {[%clk 0:03:02.9]} 6. bxc3 {[%clk 0:03:08]} 6... c5 {[%clk
0:03:03.9]} 7. e3 {[%clk 0:03:08.7]} 7... O-O {[%clk 0:02:58.6]} 8. cxd5 {[%clk
0:03:05.9]} 8... Nxd5 {[%clk 0:02:59]} 9. Bd2 {[%clk 0:02:38.6]} 9... Nc6 {[%clk
0:02:56.1]} 10. Bd3 {[%clk 0:02:38.5]} 10... cxd4 {[%clk 0:02:53.2]} 11. cxd4
{[%clk 0:02:36.4]} 11... e5 {[%clk 0:02:53.6]} 12. Ne2 {[%clk 0:02:31.6]} 12...
exd4 {[%clk 0:02:50.8]} 13. exd4 {[%clk 0:02:31.9]} 13... Nxd4 {[%clk
0:02:35.9]} 14. O-O {[%clk 0:01:57]} 14... Nxe2+ {[%clk 0:02:18.1]} 15. Qxe2
{[%clk 0:01:55]} 15... Re8 {[%clk 0:02:12.3]} 16. Be4 {[%clk 0:01:41.9]} 16...
Be6 {[%clk 0:01:50.3]} 17. Kh1 {[%clk 0:01:35.8]} 17... Qf6 {[%clk 0:01:42.9]}
18. Rfe1 {[%clk 0:01:29]} 18... Nc3 {[%clk 0:01:32.5]} 19. Qe3 {[%clk 0:01:18]}
19... Nxe4 {[%clk 0:01:29.5]} 20. fxe4 {[%clk 0:01:18.1]} 20... Qg6 {[%clk
0:01:18.3]} 21. Rac1 {[%clk 0:01:04]} 21... Bd5 {[%clk 0:01:16]} 22. Qg5 {[%clk
0:00:42.8]} 22... Bxe4 {[%clk 0:01:10.6]} 23. Qxg6 {[%clk 0:00:31.6]} 23... Bxg6
{[%clk 0:01:07.7]} 24. Rc7 {[%clk 0:00:26.1]} 24... Rxe1+ {[%clk 0:01:06.1]} 25.
Bxe1 {[%clk 0:00:28]} 25... Re8 {[%clk 0:01:06.2]} 26. Bb4 {[%clk 0:00:18.1]}
26... Rd8 {[%clk 0:00:45.1]} 27. h4 {[%clk 0:00:13.3]} 27... Be4 {[%clk
0:00:43.7]} 28. Be7 {[%clk 0:00:12.2]} 28... Rd1+ {[%clk 0:00:35.9]} 29. Kh2
{[%clk 0:00:13.6]} 29... h5 {[%clk 0:00:35.8]} 30. g3 {[%clk 0:00:11.9]} 30...
Rh1# {[%clk 0:00:34.1]} 0-1

[Event "*** Titled Tuesday Blitz"]
[Site "Chess.com"]
[Date "2019.09.03"]
[Round "4"]
[White "kinga2008"]
[Black "JussupowFan"]
[Result "1-0"]
[WhiteElo "1909"]
[BlackElo "2206"]
[TimeControl "180+2"]
[EndTime "15:51:57 PDT"]
[Termination "kinga2008 won by resignation"]

1. e4 {[%clk 0:03:01.9]} 1... a5 {[%clk 0:02:54.6]} 2. d4 {[%clk 0:03:01.7]}
2... a4 {[%clk 0:02:56.5]} 3. Bc4 {[%clk 0:03:01.3]} 3... h5 {[%clk 0:02:58.4]}
4. Nf3 {[%clk 0:03:01.5]} 4... h4 {[%clk 0:02:58.7]} 5. e5 {[%clk 0:02:56.5]}
5... e6 {[%clk 0:02:59.3]} 6. d5 {[%clk 0:02:51.9]} 6... h3 {[%clk 0:02:58.2]}
7. dxe6 {[%clk 0:02:50.7]} 7... dxe6 {[%clk 0:03:00.1]} 8. Qxd8+ {[%clk
0:02:50.7]} 8... Kxd8 {[%clk 0:03:02]} 9. gxh3 {[%clk 0:02:49.6]} 9... Bd7
{[%clk 0:02:57.9]} 10. Ng5 {[%clk 0:02:50.3]} 10... Nh6 {[%clk 0:02:58.4]} 11.
Be3 {[%clk 0:02:47.2]} 11... Nc6 {[%clk 0:02:59.1]} 12. f4 {[%clk 0:02:42.9]}
12... a3 {[%clk 0:02:59.4]} 13. Nxa3 {[%clk 0:02:42.1]} 13... Bxa3 {[%clk
0:03:00.6]} 14. bxa3 {[%clk 0:02:44]} 14... Rxa3 {[%clk 0:03:01]} 15. Bf2 {[%clk
0:02:35.5]} 15... Ke8 {[%clk 0:02:52.5]} 16. O-O-O {[%clk 0:02:32.5]} 16... Nf5
{[%clk 0:02:51.7]} 17. Rd2 {[%clk 0:02:16.3]} 17... Ra8 {[%clk 0:01:38.3]} 18.
Rhd1 {[%clk 0:02:15.3]} 18... Rd8 {[%clk 0:01:39.1]} 19. Nxf7 {[%clk 0:02:12.7]}
19... Kxf7 {[%clk 0:01:38.5]} 20. Rxd7+ {[%clk 0:02:12.1]} 20... Rxd7 {[%clk
0:01:39.4]} 21. Rxd7+ {[%clk 0:02:14]} 21... Kg6 {[%clk 0:01:40.6]} 22. Bxe6
{[%clk 0:02:14.3]} 22... Rxh3 {[%clk 0:01:40]} 23. Rf7 {[%clk 0:01:53.5]} 23...
Nfd4 {[%clk 0:01:30.5]} 24. Bxh3 {[%clk 0:01:52.2]} 24... Kxf7 {[%clk
0:01:28.9]} 25. Kd2 {[%clk 0:01:38.1]} 25... g6 {[%clk 0:01:26]} 26. Kd3 {[%clk
0:01:32.7]} 26... Nf3 {[%clk 0:01:10]} 27. c3 {[%clk 0:01:26.3]} 27... Nxh2
{[%clk 0:01:09.6]} 28. Bg3 {[%clk 0:01:25.6]} 28... Nf3 {[%clk 0:01:05.1]} 29.
Ke3 {[%clk 0:01:24.9]} 29... Ncxe5 {[%clk 0:00:49.6]} 30. fxe5 {[%clk
0:01:24.5]} 30... Ng5 {[%clk 0:00:51]} 31. Bc8 {[%clk 0:01:21.7]} 31... b6
{[%clk 0:00:50.4]} 32. e6+ {[%clk 0:01:23.1]} 32... Nxe6 {[%clk 0:00:49.9]} 33.
Bxe6+ {[%clk 0:01:24.5]} 33... Kxe6 {[%clk 0:00:51.8]} 34. Bxc7 {[%clk 0:01:26]}
34... b5 {[%clk 0:00:53.5]} 35. Bg3 {[%clk 0:01:25.3]} 35... Kd5 {[%clk
0:00:54.2]} 36. Kd3 {[%clk 0:01:17.2]} 36... g5 {[%clk 0:00:55.2]} 37. a3 {[%clk
0:01:15.2]} 37... g4 {[%clk 0:00:55.9]} 38. Bf2 {[%clk 0:01:11.8]} 38... Ke5
{[%clk 0:00:53.9]} 39. Kc2 {[%clk 0:01:09.3]} 39... Ke4 {[%clk 0:00:43.4]} 40.
Kb3 {[%clk 0:01:09.3]} 40... Kf3 {[%clk 0:00:43.3]} 41. Ba7 {[%clk 0:01:08.5]}
41... Ke2 {[%clk 0:00:39.5]} 42. Kb4 {[%clk 0:01:07.3]} 42... Kd3 {[%clk
0:00:40.7]} 43. Bd4 {[%clk 0:01:06.1]} 43... g3 {[%clk 0:00:41.4]} 44. Kxb5
{[%clk 0:01:05.6]} 44... g2 {[%clk 0:00:42.9]} 45. a4 {[%clk 0:01:02.3]} 45...
g1=Q {[%clk 0:00:37.2]} 46. Bxg1 {[%clk 0:01:02.5]} 46... Kxc3 {[%clk
0:00:39.1]} 47. a5 {[%clk 0:01:04]} 1-0